Cogmind - Beta 15 @@@ ROGUE MODE // 2025.05.24 @ 04:58:04 Player: BVrutally Odd Result: Destroyed by 8R-AWN with 8R-AWN's Boregun Performance ------------- Evolutions (1) 500 Regions Visited (5) 1000 Robots Destroyed (94) 470 Value Destroyed (2098) 2098 Prototype IDs (27) 540 Alien Tech Used (0) 0 Bonus (-362) -362 TOTAL SCORE: 4246 Bonus ------- High Alert Combat Kills 312 Aligned with FarCom 300 Friendly Fire -974 Cogmind --------- Core Integrity 0/400 Matter 234/300 Energy 22/100 System Corruption 0% Temperature Warm (154) Movement Core (400) Ox7 Location -9/Exiles Parts ------- > --- POWER (1) -------- (None) > --- PROPULSION (3) --- (None) > --- UTILITY (3) ------ (None) > --- WEAPON (2) ------- Firepult > --- INVENTORY (5) ---- Hacking Suite Rocket Launcher Peak State ------------ > --- POWER ------------ Improved Ion Engine > --- PROPULSION ------- Light Treads Light Treads Light Treads > --- UTILITY ---------- Huge Storage Unit Seismic Detector Hardened Light Armor Plating > --- WEAPON ----------- Firepult > --- INVENTORY -------- Light Treads Light Treads Light Treads Improved Treads Flight Unit Improved Flight Unit Improved Flight Unit Cooling System Medium Storage Unit Machine Analyzer Sensor Array Hardened Light Armor Plating Hardened Light Armor Plating Hacking Suite Hacking Suite Hacking Suite Heavy EM Pulse Gun Heavy EM Pulse Gun Improved Medium Laser Heavy Assault Rifle Heavy Assault Rifle Rocket Launcher Rocket Launcher Katana [Rating: 34] Favorites ----------- Power Improved Ion Engine Engine Improved Ion Engine Propulsion Light Treads Treads Light Treads Flight Unit Improved Flight Unit Utility Huge Storage Unit Device Seismic Detector Storage Huge Storage Unit Protection Hardened Light Armor Plating Weapon Improved Assault Rifle Energy Gun Heavy EM Pulse Gun Energy Cannon Firepult Ballistic Gun Improved Assault Rifle Slashing Weapon Katana Build | -11 -10 -10 -9 -9 -9 ------- Run | Yrd Mat Min Mat Min Exi Slots Evolved 2 | . . . 2 . . Power . | . . . . . . Propulsion 1 | . . . 1 . . Utility 1 | . . . 1 . . Weapon . | . . . . . . Parts Attached 45 | 7 11 . 23 1 3 Power 3 | 1 1 . 1 . . Engine 3 | 1 1 . 1 . . Core . | . . . . . . Reactor . | . . . . . . Propulsion 11 | 2 2 . 5 1 1 Treads 10 | 2 2 . 5 1 . Leg . | . . . . . . Wheel . | . . . . . . Hover . | . . . . . . Flight 1 | . . . . . 1 Utility 13 | 2 3 . 7 . 1 Device 5 | 1 1 . 2 . 1 Storage 3 | 1 2 . . . . Processor . | . . . . . . Hackware . | . . . . . . Protection 5 | . . . 5 . . Artifact . | . . . . . . Weapon 18 | 2 5 . 10 . 1 Energy Gun 11 | . 4 . 7 . . Energy Cannon 1 | . . . . . 1 Ballistic Gun 5 | 2 1 . 2 . . Ballistic Cannon . | . . . . . . Launcher . | . . . . . . Special Weapon . | . . . . . . Impact Weapon . | . . . . . . Slashing Weapon 1 | . . . 1 . . Piercing Weapon . | . . . . . . Special Melee Weapon . | . . . . . . Unidentified Prototypes 4 | . . . 3 . 1 Parts Lost 11 | . 3 . . 1 7 Power 2 | . 1 . . . 1 Propulsion 4 | . . . . 1 3 Utility 4 | . 1 . . . 3 Weapon 1 | . 1 . . . . Highest Loss Streak 4 | . 2 . . 1 4 To Critical Strikes 2 | . . . . . 2 Average Backups 21 | 2 13 22 24 24 21 Power . | . . . . . . Propulsion 6 | 1 4 8 7 7 6 Utility 7 | . 3 8 9 9 7 Weapon 6 | . 4 6 8 8 7 Tool/Special . | . . . . . . Unused Backups 25 | 1 . . 8 . 16 Power . | . . . . . . Propulsion 8 | 1 . . 3 . 4 Utility 8 | . . . 1 . 7 Weapon 9 | . . . 4 . 5 Tool/Special . | . . . . . . Average Slot Usage (%) 96 | . 95 100 97 100 87 Engine 11 | . 14 14 11 11 9 Treads 31 | . 28 28 32 33 31 Device 10 | . 10 14 11 11 10 Storage 11 | . 14 14 11 11 9 Protection 6 | . . . 8 11 9 Energy Gun 14 | . 19 28 17 . . Ballistic Gun 7 | . 7 . 3 22 11 Peak Build Rating 34 | 7 14 14 22 20 34 Average Rating 17 | 4 9 14 19 19 24 On Entrance 12 | . 7 14 14 20 20 Naked Turns . | . . . . . . Heaviest Build 115 | 11 92 92 102 99 115 Greatest Support 69 | 40 46 46 69 60 60 Greatest Overweight (x) 7 | . 2 1 2 1 7 Average Overweight (x) . | . 1 1 1 1 . Largest Inventory Capacity 25 | 8 25 25 25 25 25 Average Capacity 23 | 6 21 25 25 25 22 Most Carried 25 | 5 22 22 25 25 25 Average Carried 21 | 2 13 22 24 24 21 Final Capacity 25 | 8 25 25 25 25 5 Final Carried 25 | 5 22 22 25 24 2 Class Distribution -------------------- 65% | Mutant 34% | Scavenger-Mutant Dominant Class ---------------- Mutant | -10/Materials Mutant | -10/Mines Mutant | -9/Materials Scavenger-Mutant | -9/Mines Scavenger-Mutant | -9/Exiles Resources | -11 -10 -10 -9 -9 -9 ----------- Run | Yrd Mat Min Mat Min Exi Matter Collected 889 | 280 127 . 387 95 . Remotely . | . . . . . . Salvage Created 3805 | 132 510 . 2890 172 101 Parts 232 | 10 42 . 165 15 . Haulers Intercepted 8 | . 2 . 6 . . Recyclers Shooed 6 | . 2 . 3 1 . Parts Field Recycled . | . . . . . . Retrieved Matter . | . . . . . . Parts Self-Destructed . | . . . . . . Prevented . | . . . . . . Kills | -11 -10 -10 -9 -9 -9 ------- Run | Yrd Mat Min Mat Min Exi Combat Hostiles Destroyed 56 | . 8 . 45 3 . Guns 50 | . 8 . 39 3 . AOE 5 | . . . 5 . . Classes Destroyed 14 | 2 7 . 4 . 1 Worker 5 | . 3 . 1 1 . Builder 2 | . 1 . 1 . . Tunneler 4 | 2 . . 1 1 . Hauler 8 | . 2 . 6 . . Recycler 7 | 1 1 . 5 . . Mechanic 1 | . . . 1 . . Operator 5 | . 1 . 4 . . Watcher 6 | . 2 . 4 . . Swarmer 14 | . 6 . 8 . . Grunt 29 | . 2 . 25 2 . Brawler 1 | . . . 1 . . Duelist 2 | . . . 1 1 . Sentry 10 | . . . 10 . . Assembled 7 | . . . . . 7 Best Kill Streak 5 | 2 5 . 5 3 . Combat Bots Only 5 | . 3 . 5 3 . Max Kills in Single Turn 7 | 1 2 . 2 1 7 Gunslinging 1 | . . . 1 . . Exploded 1 | . . . 1 . . Melee . | . . . . . . Uniques/NPCs Destroyed . | . . . . . . Combat | -11 -10 -10 -9 -9 -9 -------- Run | Yrd Mat Min Mat Min Exi Hostile Shots Fired 288 | . 63 . 165 23 37 Missed 81 | . 16 . 53 6 6 Hits 207 | . 47 . 112 17 31 Melee 4 | . . . 1 3 . Projectile 203 | . 47 . 111 14 31 Critical Strikes 20 | . 2 . 2 1 15 Part Disruptions 1 | . 1 . . . . Damage Taken 3114 | . 693 . 1508 250 663 Core 551 | . 135 . 154 41 221 Absorbed by Shields . | . . . . . . Core Remaining (%) 73 | 100 . 46 . . . Volleys Fired 192 | 5 49 . 120 10 8 Largest 2 | 2 2 . 2 2 1 Hottest 250 | 40 100 . 101 46 250 Shots Fired 374 | 10 98 . 238 20 8 Gun 366 | 10 98 . 238 20 . Cannon 8 | . . . . . 8 Launcher . | . . . . . . Special . | . . . . . . Kinetic 98 | 10 28 . 40 20 . Thermal 87 | . 38 . 41 . 8 Explosive . | . . . . . . Electromagnetic 189 | . 32 . 157 . . Robot Hit Streak 24 | 3 7 . 24 9 8 Robot Miss Streak 5 | 1 4 . 5 1 3 Penetration Max . | . . . . . . Secondary Targets 9 | . . . 9 . . Max Gunslinging Chain 1 | . . . 1 . . Shots Hit Robots 265 | 6 58 . 180 15 6 Core Hits 160 | 5 29 . 106 7 13 Critical Kills 2 | 1 1 . . . . Critical Parts Destroyed . | . . . . . . Critical Strikes 7 | 1 2 . 4 . . Burn 4 | . 1 . 3 . . Destroy 2 | 1 1 . . . . Corrupt 1 | . . . 1 . . Melee Attacks 3 | . . . 3 . . Impact . | . . . . . . Slashing 3 | . . . 3 . . Piercing . | . . . . . . Sneak Attacks . | . . . . . . Combat Hostiles . | . . . . . . Follow-up Attacks . | . . . . . . Damage Inflicted 4968 | 58 837 . 3542 225 306 Guns 4191 | 58 768 . 3140 225 . Cannons 48 | . . . . . 48 Explosions 704 | . 66 . 380 . 258 Melee . | . . . . . . Ramming 25 | . 3 . 22 . . Kinetic 943 | 58 134 . 526 225 . Thermal 1437 | . 313 . 818 . 306 Explosive . | . . . . . . Electromagnetic 2563 | . 387 . 2176 . . Impact . | . . . . . . Slashing . | . . . . . . Piercing . | . . . . . . Highest Corruption . | . . . . . . Average Corruption . | . . . . . . Corruption Purged . | . . . . . . Corruption Blocked . | . . . . . . Overload Shots . | . . . . . . Overflow Damage 19 | . . . 13 . 6 Projectiles . | . . . . . . Explosions 19 | . . . 13 . 6 Melee . | . . . . . . Knockbacks . | . . . . . . Impact . | . . . . . . Kinetic . | . . . . . . Secondary . | . . . . . . Self-Inflicted Damage 376 | . 67 . 174 . 135 Shots 16 | . 2 . 6 . 8 Rammed 5 | . 1 . 4 . . Targets Rammed 5 | . 1 . 4 . . Kicked . | . . . . . . Crushed . | . . . . . . Highest Temperature 910 | . 237 . 357 14 910 Average Temperature 121 | . 84 . 71 10 315 Received Heat Transfer 678 | . 96 . 498 84 . Effects 8 | . . . . . 8 Energy Bleed 4 | . . . . . 4 Interference 1 | . . . . . 1 Matter Decay 1 | . . . . . 1 Damage (minor) 1 | . . . . . 1 Damage (major) 1 | . . . . . 1 Siege Activations . | . . . . . . Martial Activations . | . . . . . . Shielding Activations . | . . . . . . Robots Disrupted . | . . . . . . Combat Hostiles . | . . . . . . Robots Corrupted 1 | . . . 1 . . Combat Hostiles 1 | . . . 1 . . Parts Fried 9 | . . . 9 . . Impact Corruptions . | . . . . . . Robots Melted . | . . . . . . Combat Hostiles . | . . . . . . Parts Melted 2 | . 1 . 1 . . Heat Transferred 4513 | . 999 . 1634 . 1880 Parts Sabotaged . | . . . . . . Parts Stolen . | . . . . . . Parts Stripped . | . . . . . . Power Chain Reactions 10 | . 2 . 8 . . Alert | -11 -10 -10 -9 -9 -9 ------- Run | Yrd Mat Min Mat Min Exi Maximum Alert Level 3 | . . . 3 1 . Low Security (%) 47 | 100 100 100 20 31 . Level 1 17 | . . . 16 68 . Level 2 20 | . . . 37 . . Level 3 14 | . . . 25 . . Level 4 . | . . . . . . Level 5 . | . . . . . . High Security . | . . . . . . Max Security . | . . . . . . Peak Influence 902 | 10 75 15 902 396 . Initial 346 | . . 15 . 346 . Average 297 | 1 14 5 471 258 . Influence Increases 1862 | 15 295 . 1472 80 . Destroy 0b10 Robot/C 1120 | . 160 . 900 60 . Destroy 0b10 Robot/NC 190 | 15 50 . 115 10 . Destroy Leader 298 | . 48 . 240 10 . Successful Hack 32 | . 22 . 10 . . Disable Machine 75 | . 15 . 60 . . Destroy Structure 42 | . . . 42 . . Lose Combat Pursuer 105 | . . . 105 . . Influence Decreases 1862 | 15 256 39 582 840 130 Entered New Map 698 | . . 24 . 544 130 Time Decay 1128 | 15 230 15 582 286 . Lost Part 36 | . 26 . . 10 . Squads Dispatched 7 | . 1 . 6 . . Investigation 1 | . . . 1 . . Extermination . | . . . . . . Reinforcement 5 | . 1 . 4 . . Assault 1 | . . . 1 . . Garrison . | . . . . . . Intercept . | . . . . . . Searches Triggered . | . . . . . . Construction Impeded . | . . . . . . Haulers Reinforced . | . . . . . . Active Scanning Responses . | . . . . . . Cargo Convoy Interrupts . | . . . . . . Stealth | -11 -10 -10 -9 -9 -9 --------- Run | Yrd Mat Min Mat Min Exi Distress Signals 10 | . 2 . 8 . . Communications Jammed . | . . . . . . Distress Signals . | . . . . . . Times Spotted 98 | . 19 . 74 3 2 Peak Tracking Total 7 | . 4 . 7 3 3 Tactical Retreats 6 | . . . 5 . 1 Traps | -11 -10 -10 -9 -9 -9 ------- Run | Yrd Mat Min Mat Min Exi Traps Triggered 3 | . . . 3 . . Indirectly . | . . . . . . Trap Hack Attempts . | . . . . . . Triggered . | . . . . . . Disarmed . | . . . . . . Reprogrammed . | . . . . . . Reused . | . . . . . . Traps Extracted . | . . . . . . Installed . | . . . . . . Triggered . | . . . . . . Machines | -11 -10 -10 -9 -9 -9 ---------- Run | Yrd Mat Min Mat Min Exi Machines Disabled 13 | . 1 . 4 . 8 Max in Single Turn 3 | . 1 . 1 . 3 Machines Repaired . | . . . . . . Machines Dismantled . | . . . . . . Machines Sabotaged . | . . . . . . Overloaded Fab Kills . | . . . . . . Hacking | -11 -10 -10 -9 -9 -9 --------- Run | Yrd Mat Min Mat Min Exi Machines Accessed 9 | . 5 . 3 . 1 Terminals 6 | . 3 . 3 . . Fabricators . | . . . . . . Repair Stations 1 | . 1 . . . . Recycling Units 1 | . 1 . . . . Scanalyzers . | . . . . . . Garrison Access . | . . . . . . Total Hacks 15 | . 8 . 6 . 1 Successful 8 | . 4 . 3 . 1 Failed 7 | . 4 . 3 . . Catastrophic 3 | . 2 . 1 . . Database Lockouts . | . . . . . . Manual 8 | . 4 . 3 . 1 Terminals 12 | . 6 . 6 . . Fabricators . | . . . . . . Repair Stations 1 | . 1 . . . . Recycling Units 1 | . 1 . . . . Scanalyzers . | . . . . . . Garrison Access . | . . . . . . Terminal Hacks 4 | . 1 . 2 . 1 Hauler Manifests 1 | . . . 1 . . Zone Layout 2 | . 1 . 1 . . Proto ID Catalog 1 | . . . . . 1 Fabricator Hacks . | . . . . . . Repair Station Hacks . | . . . . . . Recycling Unit Hacks 1 | . 1 . . . . Retrieve Components 1 | . 1 . . . . Scanalyzer . | . . . . . . Garrison Access Hacks . | . . . . . . Unauthorized Hacks 3 | . 2 . 1 . . Terminals 3 | . 2 . 1 . . Assimilate 1 | . 1 . . . . Operators 2 | . 1 . 1 . . Fabricators . | . . . . . . Repair Stations . | . . . . . . Recycling Units . | . . . . . . Scanalyzers . | . . . . . . Garrison Access . | . . . . . . Data Cores Recovered . | . . . . . . Used . | . . . . . . Hacking Detections 4 | . 3 . 1 . . Full Trace Events . | . . . . . . Feedback Events . | . . . . . . Feedback Blocked . | . . . . . . Robot Schematics Acquired . | . . . . . . Robots Built . | . . . . . . Authchips . | . . . . . . Time . | . . . . . . Total Robot Build Rating . | . . . . . . Part Schematics Acquired . | . . . . . . Parts Built . | . . . . . . Authchips . | . . . . . . Time . | . . . . . . Total Part Build Rating . | . . . . . . Parts Repaired . | . . . . . . Time . | . . . . . . Parts Recycled . | . . . . . . Recycled Matter . | . . . . . . Retrieved Matter . | . . . . . . Retrieved Components 2 | . 2 . . . . Parts Scanalyzed . | . . . . . . Part Schematics Acquired . | . . . . . . Parts Damaged . | . . . . . . Bothacking | -11 -10 -10 -9 -9 -9 ------------ Run | Yrd Mat Min Mat Min Exi Used RIF Installer . | . . . . . . Robots Hacked . | . . . . . . Non-combat . | . . . . . . Combat . | . . . . . . Robot Hacks Applied . | . . . . . . Relay Couplers Released . | . . . . . . Fabnet Peak Effective % . | . . . . . . Robots Rewired . | . . . . . . Allies Hacked . | . . . . . . Hacks Repelled . | . . . . . . Allies | -11 -10 -10 -9 -9 -9 -------- Run | Yrd Mat Min Mat Min Exi Total Allies . | . . . . . . Largest Group . | . . . . . . Highest-Rated Group . | . . . . . . Highest-Rated Ally . | . . . . . . Total Orders . | . . . . . . Ally Attacks . | . . . . . . Total Damage . | . . . . . . Kills . | . . . . . . Allies Corrupted . | . . . . . . Allies Melted . | . . . . . . Intel | -11 -10 -10 -9 -9 -9 ------- Run | Yrd Mat Min Mat Min Exi Active Infowar (turns) 2858 | 30 866 . 799 638 525 Seismic 2858 | 30 866 . 799 638 525 Robot Analysis Total . | . . . . . . Derelict Logs Recovered 1 | . . . . 1 . Drone Launches . | . . . . . . Drone Recoveries . | . . . . . . Exploration | -11 -10 -10 -9 -9 -9 ------------- Run | Yrd Mat Min Mat Min Exi Turns Passed 5690 | 121 1436 74 2822 638 599 Spaces Moved 1937 | 53 443 31 919 253 238 Core 32 | 1 . . . . 31 Treads 1905 | 52 443 31 919 253 207 Legs . | . . . . . . Wheels . | . . . . . . Hover . | . . . . . . Flight . | . . . . . . Fastest Speed 50 | 50 160 240 240 240 50 Average Speed 236 | 157 246 240 240 240 219 Slowest Speed 400 | 160 320 240 320 240 400 Overloaded Moves . | . . . . . . Propulsion Burnouts . | . . . . . . Robots Hopped . | . . . . . . Potential Cave-ins . | . . . . . . Cave-ins Triggered . | . . . . . . Exploration Rate (%) 46 | 5 75 13 90 50 43 Regions Visited 5 Branch Regions 3 Pre-discovered Areas 1 | . . . . 1 . Known Exits Taken . | . . . . . . Unknown Exits Taken 5 | 1 1 1 1 1 . Scrap Searched . | . . . . . . Spaces Dug 3 | . . . 3 . . Terrain Destroyed 81 | . . . 39 . 42 Melee 3 | . . . 3 . . Projectile 3 | . . . . . 3 AOE 75 | . . . 36 . 39 Terrain Rammed . | . . . . . . Walls Destroyed . | . . . . . . Machines Disabled . | . . . . . . Actions | -11 -10 -10 -9 -9 -9 --------- Run | Yrd Mat Min Mat Min Exi Total 2668 | 80 694 32 1290 264 308 Wait 406 | 7 170 2 178 . 49 Move 1932 | 52 442 30 918 252 238 Hop . | . . . . . . Pick Up 42 | 7 16 . 17 . 2 Fast Attach 20 | 7 4 . 7 1 1 Attach 6 | . 2 . 1 1 2 Detach . | . . . . . . Swap 28 | . 5 . 21 . 2 Drop 34 | 2 5 . 21 . 6 Fire 192 | 5 49 . 120 10 8 Melee 3 | . . . 3 . . Ram . | . . . . . . Kick . | . . . . . . Crush 5 | . 1 . 4 . . Escape Stasis . | . . . . . . Rewire . | . . . . . . Trap . | . . . . . . Miscellaneous . | . . . . . . Route ------- -11/Scrapyard -10/Materials (discovered 4 exits: *Mat x3 / [*Min]) -10/Mines -9/Materials (discovered 4 exits: [*Mat x3] / [*Min]) -9/Mines (discovered 2 exits: [*Mat] / *Exi) -9/Exiles History --------- Turn | Location | Event 13 | -11/Scrapyard | Discovered new exit (range 14) 122 | -11/Scrapyard | Entered Materials 123 | -10/Materials | Met a group of wandering Federalists 318 | -10/Materials | Build established: Mutant 608 | -10/Materials | Discovered new exit (range 5) 743 | -10/Materials | Discovered new exit (range 15) 996 | -10/Materials | Core integrity fell below 50% 1136 | -10/Materials | Discovered new exit (range 8) 1432 | -10/Materials | Discovered new exit (range 8) 1558 | -10/Materials | Entered Mines 1604 | -10/Mines | Discovered new exit (range 12) 1627 | -10/Mines | Assembled infested the area 1632 | -10/Mines | Entered Materials 1632 | -9/Materials | Evolved 2 slots: Propulsion x1, Utility x1 2425 | -9/Materials | Discovered new exit (range 7) 2767 | -9/Materials | Discovered new exit (range 15) 3632 | -9/Materials | First assault squad dispatched 3794 | -9/Materials | Discovered new exit (range 13) 3947 | -9/Materials | Build established: Scavenger-Mutant 4400 | -9/Materials | Discovered new exit (range 16) 4454 | -9/Materials | Entered Mines 4541 | -9/Mines | Discovered new exit (range 12) 4873 | -9/Mines | Learned location of Zion (-6) 5082 | -9/Mines | Deemed a non-threat by the Exiles lab entrance 5082 | -9/Mines | Discovered new exit (range 5) 5092 | -9/Mines | Entered Exiles 5152 | -9/Exiles | Met 8R-AWN 5186 | -9/Exiles | Met EX-HEX 5260 | -9/Exiles | Met EX-BIN 5294 | -9/Exiles | Aligned with FarCom system 5296 | -9/Exiles | Given EX-Vault access code 5376 | -9/Exiles | Opened EX-Vault 5394 | -9/Exiles | Found Firepult 5405 | -9/Exiles | Found Gui. Plasma Cannon 5452 | -9/Exiles | Warned to stay clear of 0b10 Research branches 5599 | -9/Exiles | Attacked by the Exiles 5623 | -9/Exiles | Core integrity fell below 50% 5624 | -9/Exiles | Murdered 7 allies 5648 | -9/Exiles | Lost 3 parts (1p2u) 5677 | -9/Exiles | Core integrity fell below 20% 5691 | -9/Exiles | Destroyed by 8R-AWN with 8R-AWN's Boregun Last Messages --------------- 05680_ HV Slug penetrates Machine. 05680_ Machine disabled. 05680_ HV Slug penetrates Wall. 05682_ Penetrated by HV Slug. 05682_ HV Slug penetrates Wall. 05682_ Penetrated by HV Slug. 05682_ HV Slug penetrates Wall. 05685_ Penetrated by HV Slug. 05685_ HV Slug penetrates Wall. 05685_ Penetrated by HV Slug. 05685_ HV Slug penetrates Wall. 05687_ HV Slug penetrates BIN's Workstation. 05687_ HV Slug penetrates Machine. 05687_ Penetrated by HV Slug. 05687_ HV Slug penetrates Earth. 05689_ HV Slug penetrates Machine. 05689_ HV Slug penetrates Wall. 05689_ Penetrated by HV Slug. 05689_ HV Slug penetrates Earth. 05691_ Penetrated by HV Slug. Map ----- +----------------------------------------------------+ | ????????????????# #??????????????????????????? | | ????????????????# #???###????????????????????? | | ????????????????# #??"""""#??????????????????? | | ????????????????# ## """#??????????????????? | | ????????????????# X""#??????????????????? | | ????????????????# ## """#??????????????????? | | ????????######### #??"""""#??????????????????? | | ????????#""""""## #???###????????????????????? | | ????????#"""" ## #??????????????????????????? | | ????????#""X" #??????????????????????????? | | ????????#" #??????????????????????????? | | ????????#" ## #??????????????????????????? | | ????????#""""""## #?#########????????????????? | | ????????##"###### #?#"""""""#????????????????? | | ???????? "?????# #?#"""""""#????????????????? | | ???????"""??????# #?#"""""""#????????????????? | | ???????????????## ###"" """"#????????????????? | | ???????????????#" """"#????????????????? | | ???????????????#" """#????????????????? | | ???????????????# """#????????????????? | | ???????????????#" """#????????????????? | | ???????????????# """#????????????????? | | ???????????????#" "## ""????????????? | | ???????????????## "" ?????????????? | | ????????????????# ####????????????? | | ??????????# ; @ g #???????????? | | ????????????????#" """????????????? | | ????????????????#" " """????????????? | | ???????????????##" ###;## #### """????????????? | | ??????????????##" ## ### #???????????????????? | | ??????????#####"" # #??# #???????????????????? | | ?????????#""""""" ##???# #???????????????????? | | ?????????""" " "" ##??############??????????? | | ???????" """ " #####"""""""""##?????????? | | ????? " " " """ """"##????????? | | ???? " " #????????? | | ???? " """#????????? | | ???? "#????????? | | ???? ["##???????? | | ???? =! "###?????? | | ???? """""" ]=[=/""#?????? | | ????? ######""" [!!=!! #????## | | ????? ""#?????#####""" !=[=] " #?# | | ?????? """#??????????##""" =!! " ## | | ???????????????????????#"""" [ " # | | ???????????????????????#"" | | ???????????????????????"""" | | ?????????????????????"" | | ????????????????????" | | ???????????????????? | +----------------------------------------------------+ Best States ------------- Heat Dissipation 50 Energy Generation 12 Energy Capacity 265 Matter Stores 300 Matter Capacity 300 Sight Range 16 Terrain Scan Density 10 Armor Coverage 225 Evasion (%) 40 Recoil Reduction 3 Item Schematics ----------------- None Robot Schematics ------------------ None Fabricated ------------ Nothing Repaired ---------- Nothing Alien Tech Used ----------------- None Achievements -------------- None Challenges ------------ None Game ------ Seed FlyingSingularityNullifier Manual? 0 Play Time 00:24:27 Cumulative 303.5 hours Start 2025.05.24 @ 03:41:00 End 2025.05.24 @ 04:58:04 Sessions 3 Manual Loads 0 Difficulty Rogue Special Mode None Game No. 143 Rogue 80 Adventurer 16 Explorer 47 Win Type - Total 40 Types 23/5/5/1/0/1/2/1/1/1 Lore% 89 Gallery% 87 Achievement% 83 Wizard Run 0 Options --------- Layout 2 ASCII 0 Keyboard 0 Movement Mouse Keybinds 0 Fullscreen 1 Font 32/Tamsyn Map View 50x44 Zoom Use 0% Tactical HUD 1 Map Filters NONE Filters NONE Steam 1 RUN: 9db13a7c-786b-4690-924c-1ad6bb175d70